bitfinex/quotes_SOLUSD_20240620
["timestamp","ask_amount","ask_price","bid_price","bid_amount"]
[1718895026984,6.522,134.8,134.68,18.5622]
[1718895027176,45.0,134.79,134.71,7.4229]
[1718895027466,6.522,134.8,134.73,7.4218]
[1718895028662,6.522,134.8,134.72,20.0]
[1718895028856,45.0,134.79,134.72,20.0]
[1718895029372,45.0,134.79,134.68,38.5612]
[1718895029544,6.522,134.8,134.68,38.5612]
[1718895029545,6.522,134.8,134.69,63.5598]
[1718895029751,6.522,134.8,134.72,7.4222]
[1718895030174,6.522,134.8,134.73,7.4221]
[1718895030753,6.522,134.8,134.73,7.4218]
[1718895031206,6.522,134.8,134.74,7.4214]
[1718895032009,6.522,134.8,134.73,7.422]
[1718895032271,6.522,134.8,134.74,20.0]
[1718895032566,6.522,134.8,134.69,45.0]
[1718895032861,6.522,134.8,134.67,44.4469]
[1718895032862,45.0,134.79,134.67,29.4821]
[1718895033056,45.0,134.79,134.64,18.5669]
[1718895033386,45.0,134.79,134.65,7.4263]
[1718895033387,52.67,134.78,134.65,7.4263]
[1718895033550,22.5902,134.77,134.65,7.4263]
[1718895033766,45.0,134.76,134.64,7.427]
[1718895034490,45.0,134.76,134.62,18.5705]
[1718895034685,45.0,134.76,134.66,7.4257]
[1718895035355,45.0,134.76,134.6,58.74086]
[1718895035566,45.0,134.76,134.64,7.4269]
[1718895035772,45.0,134.76,134.65,20.0]
[1718895036172,45.0,134.76,134.65,27.4266]
[1718895036484,45.0,134.76,134.6,36.35086]
[1718895036679,6.5866,134.75,134.62,7.4279]
[1718895036994,65.0,134.74,134.63,20.0]
[1718895037155,65.0,134.74,134.62,7.37360008]
[1718895037375,65.0,134.74,134.58,29.763273]
[1718895037376,6.3209,134.72,134.57,18.5773]
[1718895037569,45.0,134.71,134.62,7.4281]
[1718895037891,45.0,134.71,134.63,7.4274]
[1718895038186,6.3209,134.72,134.67,7.4253]
[1718895038402,6.3209,134.72,134.6,22.39]
[1718895038403,6.3209,134.72,134.68,7.4245]
[1718895038604,6.3209,134.72,134.67,7.4253]
[1718895038870,6.3209,134.72,134.65,7.4266]
[1718895039068,6.3209,134.72,134.66,20.0]
[1718895039305,6.3209,134.72,134.63,7.4276]
[1718895039463,6.3209,134.72,134.62,20.0]
[1718895039657,6.3209,134.72,134.66,7.4258]
[1718895039879,6.3209,134.72,134.63,45.0]
[1718895040081,6.3209,134.72,134.67,7.4254]
[1718895040305,6.3209,134.72,134.68,7.4248]
[1718895040628,6.3209,134.72,134.69,7.4243]
[1718895040768,6.3209,134.72,134.68,7.4247]
[1718895041583,6.0015,134.76,134.69,27.4243]
[1718895041787,6.0015,134.76,134.69,20.0]
[1718895041973,6.0015,134.76,134.71,7.4231]
[1718895042371,6.0015,134.76,134.72,20.0]
[1718895042677,15.9198,134.77,134.73,7.422]
[1718895042872,6.0015,134.8,134.74,7.4216]
[1718895043257,6.0015,134.8,134.73,7.4219]
[1718895043481,6.0015,134.8,134.74,20.0]
[1718895043877,6.0015,134.8,134.71,7.4231]
[1718895044058,6.0015,134.8,134.72,20.0]
[1718895044264,6.0015,134.8,134.75,7.4208]
[1718895044485,6.339,134.84,134.76,20.0]
[1718895044778,6.339,134.84,134.77,7.4199]
[1718895044987,6.339,134.84,134.78,20.0]
[1718895045578,6.339,134.84,134.77,20.0]
[1718895046086,6.339,134.84,134.76,20.0]
[1718895046258,6.339,134.84,134.74,20.0]
[1718895046459,6.339,134.84,134.75,52.4208]
[1718895046679,6.339,134.84,134.76,20.0]
[1718895047172,6.339,134.84,134.79,7.4185]
[1718895047369,6.339,134.84,134.8,20.0]
[1718895048582,6.339,134.84,134.81,7.4176]
[1718895048780,6.339,134.84,134.8,20.0]
[1718895048991,6.339,134.84,134.77,27.4195]
[1718895049182,6.339,134.84,134.78,7.4193]
[1718895049482,6.339,134.84,134.79,20.0]
[1718895049704,6.339,134.84,134.77,7.4197]
[1718895049889,6.339,134.84,134.78,20.0]
[1718895050091,6.339,134.84,134.73,18.5553]
[1718895050390,6.339,134.84,134.74,27.4215]
[1718895050595,6.339,134.84,134.74,20.0]
[1718895050884,45.0,134.83,134.74,20.0]
[1718895051072,45.0,134.83,134.72,20.0]
[1718895051588,45.0,134.83,134.74,7.4214]
[1718895051788,6.339,134.84,134.73,22.39]
[1718895051967,6.339,134.84,134.75,42.39]
[1718895052167,6.339,134.84,134.81,7.4176]
[1718895052477,6.339,134.84,134.79,7.4187]
[1718895052798,6.339,134.84,134.77,18.5489]
[1718895052969,6.339,134.84,134.82,7.4169]
[1718895053284,15.0271,134.85,134.8,7.418]
[1718895053489,15.0271,134.85,134.78,7.4192]
[1718895053668,15.0271,134.85,134.79,20.0]
[1718895053870,15.0271,134.85,134.75,60.1252]
[1718895054066,15.0271,134.85,134.76,67.39]
[1718895054260,15.0271,134.85,134.81,7.4175]
[1718895054687,15.0271,134.85,134.77,18.549]
[1718895054875,15.0271,134.85,134.78,20.0]
[1718895055079,15.0271,134.85,134.81,7.4175]
[1718895055478,7.75993186,134.95,134.88,7.4138]
[1718895055682,6.1112,134.97,134.83,22.39]
[1718895055887,6.1112,134.97,134.88,7.4138]
[1718895056095,1.56592028,134.96,134.84,20.0]
[1718895056473,1.56592028,134.96,134.8,15.0408]
[1718895056668,1.56592028,134.96,134.78,18.5486]
[1718895056669,1.56592028,134.96,134.82,7.4172]
[1718895056987,1.56592028,134.96,134.78,18.5486]
[1718895056988,1.56592028,134.96,134.83,20.0]
[1718895057185,1.56592028,134.96,134.78,18.5486]
[1718895057186,1.56592028,134.96,134.82,7.4171]
[1718895057376,46.56592028,134.96,134.82,7.4171]
[1718895057573,1.56592028,134.96,134.82,7.4171]
[1718895057784,1.56592028,134.96,134.78,18.5486]
[1718895057785,6.1373,134.95,134.8,7.418]
[1718895057992,46.56672408,134.94,134.81,20.0]
[1718895058300,46.56672408,134.94,134.82,7.4171]
[1718895058487,46.56672408,134.94,134.81,20.0]
[1718895058672,1.56672408,134.93,134.81,20.0]
[1718895058884,21.56672408,134.93,134.81,20.0]
[1718895059094,45.0,134.92,134.81,20.0]
[1718895060180,45.0,134.92,134.77,7.4198]
[1718895060181,6.2601,134.9,134.77,7.4198]
[1718895060387,6.2601,134.9,134.75,15.0271]
[1718895060388,45.0,134.89,134.78,27.4192]
[1718895060588,45.0,134.89,134.78,20.0]
[1718895060982,253.4,134.91,134.78,20.0]
[1718895061289,253.4,134.91,134.82,18.542]
[1718895061595,6.2601,134.96,134.88,7.4138]
[1718895061891,6.2601,134.96,134.79,21.4912]
[1718895061892,6.2601,134.96,134.86,18.5376]
[1718895062076,253.4,134.98,134.87,40.0152684]
[1718895062390,253.4,134.98,134.87,20.0]
[1718895062572,253.4,134.98,134.88,7.4136]
[1718895062771,253.4,134.98,134.87,20.0]
[1718895062980,255.12588018,134.98,134.87,20.0]
[1718895063693,45.0,134.97,134.83,7.4165]
[1718895063899,45.0,134.97,134.84,20.0]
[1718895064100,45.0,134.97,134.81,7.4173]
[1718895064101,38.8659,134.95,134.81,7.4173]
[1718895064275,38.8659,134.95,134.82,27.4168]
[1718895064276,45.0,134.94,134.82,27.4168]
[1718895064480,45.0,134.94,134.82,27.4169]
[1718895064671,45.0,134.94,134.79,18.546]
[1718895064876,20.0,134.93,134.8,20.0]
[1718895065082,45.0,134.92,134.8,7.4179]
[1718895065397,45.0,134.92,134.81,7.4176]
[1718895066211,45.0,134.92,134.84,7.4157]
[1718895066369,6.1959,134.95,134.85,7.4152]
[1718895066576,6.1959,134.95,134.82,18.543]
[1718895066772,6.1959,134.95,134.84,7.4159]
[1718895066995,6.1959,134.95,134.85,20.0]
[1718895067593,6.1959,134.95,134.86,7.4149]
[1718895067789,6.1959,134.95,134.87,20.0]
[1718895067974,255.12588018,134.98,134.87,20.0]
[1718895068173,255.12588018,134.98,134.92,7.4113]
[1718895068381,253.4,134.98,134.92,7.4113]
[1718895068587,253.4,134.98,134.88,63.5336]
[1718895068588,253.4,134.98,134.91,7.4121]
[1718895068793,253.4,134.98,134.87,20.0]
[1718895068992,253.4,134.98,134.91,7.4121]
[1718895069297,253.4,134.98,134.88,45.0]
[1718895069500,253.4,134.98,134.89,20.0]
[1718895069989,253.4,134.98,134.91,7.4121]
[1718895070180,253.4,134.98,134.92,27.4114]
[1718895070387,6.2338,135.03,134.94,7.4106]
[1718895070774,253.4,135.05,134.95,20.0]
[1718895071100,253.4,135.05,134.96,7.4093]
[1718895071288,253.4,135.05,134.97,20.0]
[1718895071680,253.4,135.05,134.95,7.4099]
[1718895071982,253.4,135.05,134.96,20.0]
[1718895072303,253.4,135.05,134.97,7.4086]
[1718895072600,253.4,135.05,134.97,7.4088]
[1718895073006,253.4,135.05,134.96,7.4093]
[1718895073302,253.4,135.05,134.97,27.409]
[1718895073689,6.01360548,135.09,135.0,7.4072]
[1718895073888,6.2569,135.1,135.01,7.4067]
[1718895074309,6.2569,135.1,135.02,27.4059]
[1718895074800,253.4,135.12,135.02,20.0]
[1718895075203,253.4,135.12,135.0,20.0]
[1718895075590,253.4,135.12,134.95,21.9556]
[1718895075591,253.4,135.12,134.99,18.5185]
[1718895075903,253.4,135.12,135.02,7.4059]
[1718895076484,38.36821938,135.13,135.0,20.0]
[1718895076686,5.95821938,135.13,135.01,45.0]
[1718895076908,7.74709546,135.16,135.03,7.4056]
[1718895077211,1.50146392,135.15,135.02,20.0]
[1718895077411,32.41,135.1,134.9,6.4824]
[1718895077598,253.4,135.08,134.95,7.41]
[1718895077790,253.4,135.08,134.91,18.5308]
[1718895077987,255.1274878,135.08,134.91,18.5308]
[1718895078207,32.41,135.06,134.91,18.5308]
[1718895078411,32.41,135.06,134.89,15.4443]
[1718895078412,45.0,135.05,134.89,15.4443]
[1718895078589,65.0,135.05,134.9,18.5309]
[1718895078909,1.72588018,135.04,134.93,7.4111]
[1718895079115,1.72588018,135.04,134.9,18.5309]
[1718895079289,1.72588018,135.04,134.92,7.4117]
[1718895079605,1.72588018,135.04,134.89,15.4443]
[1718895079606,1.72588018,135.04,134.91,7.412]
[1718895080112,1.72588018,135.04,134.92,7.4117]
[1718895080315,1.72588018,135.04,134.91,7.4121]
[1718895080497,1.72588018,135.04,134.89,15.4443]
[1718895080700,1.72588018,135.04,134.89,7.4131]
[1718895081006,32.41,135.02,134.89,7.4131]
[1718895081214,45.0,135.01,134.9,20.0]
[1718895081708,45.0,135.01,134.89,7.4131]
[1718895081884,26.3618,135.0,134.83,15.6216]
[1718895082209,32.41,134.98,134.8,6.5277]
[1718895082409,20.0,134.97,134.81,18.5432]
[1718895082650,20.0,134.97,134.82,7.417]
[1718895082906,45.0,134.96,134.82,7.4169]
[1718895083110,1.72508838,134.95,134.8,6.5277]
[1718895083311,21.72508838,134.95,134.82,7.4172]
[1718895083491,45.0,134.94,134.82,7.4172]
[1718895083689,45.0,134.94,134.83,7.4167]
[1718895084096,77.41,134.94,134.81,20.0]
[1718895084393,77.41,134.94,134.83,7.4165]
[1718895084394,79.13508838,134.94,134.83,7.4165]
[1718895084595,79.13508838,134.94,134.82,7.417]
[1718895084790,79.13508838,134.94,134.79,18.5471]
[1718895084994,1.72508838,134.93,134.83,7.4166]
[1718895085207,1.72508838,134.93,134.77,38.0116]
[1718895085208,1.72508838,134.93,134.84,7.416]
[1718895085804,1.72508838,134.93,134.82,7.417]
[1718895086007,1.72508838,134.93,134.83,27.4167]
[1718895086804,1.72508838,134.93,134.83,7.4167]
[1718895087803,21.72508838,134.93,134.83,7.4167]
[1718895088006,45.0,134.92,134.79,18.5472]
[1718895088219,45.0,134.92,134.81,7.4174]
[1718895088527,45.0,134.92,134.82,20.0]
[1718895088700,45.0,134.92,134.81,7.4174]
[1718895089216,45.0,134.92,134.82,7.4172]
[1718895089714,45.0,134.92,134.77,15.6216]
[1718895089917,45.0,134.92,134.78,20.0]
[1718895090293,45.0,134.92,134.8,7.418]
[1718895090499,21.72508838,134.93,134.81,20.0]
[1718895090694,20.0,134.93,134.82,7.4169]
[1718895091096,20.0,134.93,134.83,7.4166]
[1718895091296,20.0,134.93,134.82,7.4171]
[1718895091899,45.0,134.92,134.83,7.4166]
[1718895092401,45.0,134.92,134.81,20.0]
[1718895092601,45.0,134.92,134.78,20.0]
[1718895092894,45.0,134.92,134.79,45.0]
[1718895093099,6.5652,134.91,134.8,20.0]
[1718895093308,45.0,134.9,134.8,27.4181]
[1718895093495,45.0,134.9,134.81,7.4177]
[1718895093695,45.0,134.9,134.82,20.0]
[1718895093920,45.0,134.9,134.8,20.0]
[1718895093921,45.0,134.9,134.8,27.4182]
[1718895094219,45.0,134.9,134.81,7.4177]
[1718895094425,45.0,134.9,134.82,7.4172]
[1718895094622,6.5652,134.91,134.81,7.4176]
[1718895094793,45.0,134.9,134.81,7.4176]
[1718895095512,6.5652,134.91,134.84,7.4159]
[1718895095722,6.5652,134.91,134.85,7.4155]
[1718895095904,5.78861083,134.93,134.85,7.4155]
[1718895096093,259.9912,134.95,134.85,7.4155]
[1718895096521,20.0,134.94,134.86,7.415]
[1718895096719,20.0,134.94,134.85,7.4153]
[1718895097105,20.0,134.94,134.84,7.416]
[1718895097303,20.0,134.94,134.8,42.39]
[1718895097304,20.0,134.94,134.83,7.4164]
[1718895097719,20.0,134.94,134.82,18.5431]
[1718895097923,45.0,134.93,134.85,7.4152]
[1718895098112,45.0,134.93,134.84,7.416]
[1718895098424,45.0,134.93,134.85,7.4155]
[1718895099121,45.0,134.93,134.83,20.0]
[1718895099326,45.0,134.93,134.83,7.4163]
[1718895099617,45.0,134.93,134.81,20.0]
[1718895099618,45.0,134.93,134.81,27.4174]
[1718895099812,20.0,134.92,134.81,27.4174]
[1718895100020,45.0,134.91,134.76,18.5514]
[1718895100522,20.0,134.9,134.79,7.4184]
[1718895100825,45.0,134.89,134.8,7.4182]
[1718895101425,45.0,134.89,134.81,7.4177]
[1718895101631,20.0,134.9,134.79,18.5465]
[1718895101923,20.0,134.93,134.8,65.0]
[1718895102120,20.0,134.93,134.82,7.417]
[1718895102324,20.0,134.93,134.81,7.4175]
[1718895102927,45.0,134.92,134.8,20.0]
[1718895103221,45.0,134.92,134.81,7.4178]
[1718895103396,20.0,134.91,134.79,18.5472]
[1718895103599,45.0,134.9,134.81,7.4177]
[1718895103799,45.0,134.9,134.8,20.0]
[1718895103800,45.0,134.93,134.8,7.4183]
[1718895104220,20.0,134.92,134.8,7.4183]
[1718895104418,45.0,134.91,134.8,7.4183]
[1718895104907,20.0,134.9,134.79,7.4187]
[1718895105115,45.0,134.89,134.79,7.4187]
[1718895105825,45.0,134.89,134.8,7.4183]
[1718895106208,45.0,134.89,134.79,7.4186]
[1718895106608,45.0,134.89,134.8,7.4183]
[1718895107911,45.0,134.89,134.81,7.4176]
[1718895109628,45.0,134.89,134.79,18.5473]
[1718895109807,20.0,134.9,134.8,45.0]
[1718895110003,32.41,134.94,134.82,7.417]
[1718895110202,65.0,134.93,134.78,20.0]
[1718895110402,65.0,134.93,134.81,7.4175]
[1718895110606,20.0,134.93,134.8,18.5448]
[1718895110808,20.0,134.93,134.81,65.0]
[1718895111028,20.0,134.93,134.81,20.0]
[1718895111426,20.0,134.93,134.83,7.4164]
[1718895111631,20.0,134.93,134.84,7.416]
[1718895111936,20.0,134.93,134.83,7.4165]
[1718895112431,20.0,134.93,134.8,20.0]
[1718895112639,20.0,134.93,134.81,52.4175]
[1718895112814,45.0,134.92,134.81,52.4175]
[1718895113016,45.0,134.92,134.81,7.4175]
[1718895113425,45.0,134.92,134.82,7.4172]
[1718895113717,45.0,134.92,134.83,7.4164]
[1718895114024,45.0,134.92,134.8,22.39]
[1718895114025,20.0,134.93,134.82,7.417]
[1718895114220,20.0,134.93,134.82,7.4171]
[1718895114533,20.0,134.93,134.83,7.4166]
[1718895115217,20.0,134.93,134.8,18.5457]
[1718895115218,45.0,134.92,134.82,7.4171]
[1718895115424,45.0,134.92,134.81,7.4177]
[1718895115628,45.0,134.92,134.79,20.0]
[1718895115832,20.0,134.91,134.8,7.418]
[1718895116040,45.0,134.9,134.79,20.0]
[1718895116219,6.4658,134.89,134.79,20.0]
[1718895116427,23.0385,134.89,134.79,7.4189]
[1718895116633,23.0385,134.89,134.8,7.4182]
[1718895116936,23.0385,134.89,134.77,58.5488]
[1718895117138,23.0385,134.89,134.81,7.4175]
[1718895117647,23.0385,134.89,134.79,7.4185]
[1718895117822,23.0385,134.89,134.8,7.4183]
[1718895119626,23.0385,134.89,134.79,7.4186]
[1718895120237,23.0385,134.89,134.8,7.4183]
[1718895120546,23.0385,134.89,134.8,7.4181]
[1718895120734,23.0385,134.89,134.77,80.9389]
[1718895120735,23.0385,134.89,134.79,7.4187]
[1718895121047,23.0385,134.89,134.8,20.0]
[1718895121344,23.0385,134.89,134.79,27.4189]
[1718895121839,23.0385,134.89,134.77,20.0]
[1718895122147,65.0,134.88,134.75,27.4208]
[1718895122332,65.0,134.88,134.76,7.4204]
[1718895122935,6.1487,134.87,134.72,20.0]
[1718895123138,6.1487,134.84,134.69,6.1387]
[1718895123336,45.0,134.83,134.7,27.4236]
[1718895123533,45.0,134.83,134.71,7.4233]
[1718895123739,45.0,134.83,134.72,20.0]
[1718895123950,45.0,134.83,134.68,87.029993]
[1718895124445,20.0,134.82,134.69,7.4239]
[1718895124639,45.0,134.81,134.69,7.4239]
[1718895124849,21.8972,134.8,134.69,7.4239]
[1718895125024,21.8972,134.8,134.66,29.744959]
[1718895125220,45.0,134.79,134.67,20.0]
[1718895125424,20.0,134.78,134.67,20.0]
[1718895125728,45.0,134.77,134.67,20.0]
[1718895126126,45.0,134.77,134.66,7.4259]
[1718895126534,45.0,134.77,134.67,7.4253]
[1718895126923,45.0,134.77,134.62,22.39]
[1718895127456,45.0,134.77,134.66,7.4261]
[1718895127629,45.0,134.77,134.67,20.0]
[1718895128330,45.0,134.77,134.66,7.4261]
[1718895128518,45.0,134.77,134.66,7.426]
[1718895128722,45.0,134.77,134.65,7.4264]
[1718895128921,45.0,134.77,134.66,20.0]
[1718895129347,45.0,134.77,134.64,38.5675]
[1718895129569,6.0244,134.76,134.65,7.4265]
[1718895129731,45.0,134.75,134.66,20.0]
[1718895129930,45.0,134.75,134.66,27.426]
[1718895130427,45.0,134.75,134.66,20.0]
[1718895130947,45.0,134.75,134.62,18.5694]
[1718895131139,45.0,134.75,134.67,7.4253]
[1718895131635,45.0,134.75,134.64,18.5676]
[1718895131636,6.0244,134.76,134.68,7.4247]
[1718895131840,6.0244,134.76,134.65,18.5653]
[1718895132039,6.0244,134.76,134.67,7.4251]
[1718895132237,6.0244,134.76,134.66,7.4258]
[1718895132438,6.0244,134.76,134.67,20.0]
[1718895132630,6.0244,134.76,134.65,7.4264]
[1718895132837,45.0,134.75,134.65,7.4264]
[1718895133146,45.0,134.75,134.66,7.4259]
[1718895133452,45.0,134.75,134.65,7.4264]
[1718895133636,45.0,134.75,134.64,7.427]
[1718895133845,16.4797,134.74,134.65,20.0]
[1718895134146,45.0,134.73,134.65,20.0]
[1718895134727,45.0,134.73,134.66,7.4258]
[1718895134950,16.4797,134.74,134.66,7.4258]
[1718895135141,16.4797,134.74,134.65,20.0]
[1718895135340,16.4797,134.74,134.64,20.0]
[1718895135846,16.4797,134.74,134.66,7.4258]
[1718895136443,16.4797,134.74,134.65,7.4265]
[1718895136750,16.4797,134.74,134.66,7.426]
[1718895136942,16.4797,134.74,134.67,7.4254]
[1718895137544,16.4797,134.74,134.65,7.4263]
[1718895137747,16.4797,134.74,134.64,27.427]
[1718895137944,16.4797,134.74,134.64,20.0]
[1718895138131,45.0,134.73,134.62,7.428]
[1718895138333,6.2135,134.72,134.62,7.428]
[1718895138555,45.0,134.71,134.62,7.428]
[1718895139443,45.0,134.71,134.61,7.4287]
[1718895139638,45.0,134.71,134.59,7.4297]
[1718895139938,20.0,134.7,134.56,18.5778]
[1718895140239,20.0,134.7,134.55,38.9668]
[1718895140240,16.4863,134.68,134.57,57.1541]
[1718895140550,45.0,134.67,134.57,38.5778]
[1718895140856,16.4863,134.68,134.62,7.4282]
[1718895141555,16.4863,134.68,134.58,18.5749]
[1718895141738,16.4863,134.68,134.59,65.0]
[1718895143059,16.4863,134.68,134.59,27.4299]
[1718895143239,6.2054,134.66,134.55,48.348715]
[1718895143558,6.2054,134.66,134.58,7.4301]
[1718895144266,6.2054,134.66,134.59,7.4299]
[1718895144437,6.2054,134.66,134.57,18.5775]
[1718895144638,6.2054,134.66,134.58,7.4303]
[1718895144875,6.2054,134.66,134.58,7.4302]
[1718895145563,6.2054,134.66,134.56,20.0]
[1718895145858,6.2054,134.66,134.58,7.4304]
[1718895146233,6.2054,134.66,134.57,18.5775]
[1718895146437,6.2054,134.66,134.56,42.39]
[1718895146439,20.0,134.7,134.58,87.39]
[1718895146440,6.4702,134.7,134.58,87.39]
[1718895146634,6.4702,134.7,134.6,22.39]
[1718895146849,6.4702,134.7,134.63,7.4274]
[1718895147255,6.4702,134.7,134.61,65.0]
[1718895147636,6.4702,134.7,134.54,38.6343]
[1718895147850,6.4702,134.7,134.65,7.4263]
[1718895148148,6.4508,134.74,134.7,7.4237]
[1718895148460,16.2514,134.76,134.71,7.4229]
[1718895148657,6.4508,134.77,134.72,52.4224]
[1718895148867,6.4508,134.77,134.72,7.4224]
[1718895149168,16.3642,134.81,134.73,7.422]
[1718895149463,6.3684,134.8,134.7,7.4237]
[1718895149666,6.3684,134.8,134.71,20.0]
[1718895150171,6.3684,134.8,134.62,15.6515]
[1718895150373,45.0,134.79,134.67,7.425]
[1718895150664,45.0,134.79,134.68,20.0]
[1718895150839,45.0,134.79,134.64,18.5679]
[1718895150840,45.0,134.79,134.67,27.4252]
[1718895151044,45.0,134.79,134.67,20.0]
[1718895151246,45.0,134.79,134.67,27.4255]
[1718895151468,45.0,134.79,134.67,20.0]
[1718895151670,6.3684,134.8,134.69,22.39]
[1718895151964,6.3684,134.8,134.7,65.0]
[1718895152473,6.3684,134.8,134.71,7.4233]
[1718895152666,6.3684,134.8,134.72,7.4227]
[1718895152851,6.3684,134.8,134.73,7.4222]
[1718895153176,6.3684,134.8,134.75,7.421]
[1718895153469,635.4,134.95,134.76,7.4205]
[1718895153470,21.6067,134.87,134.76,7.4205]
[1718895154671,21.6067,134.87,134.75,7.4209]
[1718895154971,21.6067,134.87,134.76,20.0]
[1718895155267,45.0,134.86,134.76,20.0]
[1718895155459,45.0,134.86,134.75,20.0]
[1718895155762,45.0,134.86,134.74,7.4216]
[1718895155975,20.0,134.85,134.73,7.4218]
[1718895156152,20.0,134.85,134.72,27.4226]
[1718895156153,45.0,134.84,134.72,27.4226]
[1718895156554,45.0,134.84,134.72,20.0]
[1718895156761,45.0,134.84,134.72,27.4227]
[1718895157878,45.0,134.84,134.72,20.0]
[1718895158168,32.5,134.82,134.68,29.740134]
[1718895158347,65.0,134.81,134.69,20.0]
[1718895158546,65.0,134.81,134.68,20.0]
[1718895158745,65.0,134.81,134.68,7.4248]
[1718895159145,65.0,134.81,134.69,7.4242]
[1718895159751,65.0,134.81,134.68,7.4247]
[1718895160353,65.0,134.81,134.67,7.4254]
[1718895160548,21.6467,134.8,134.66,20.0]
[1718895160750,21.6467,134.8,134.71,7.4233]
[1718895160751,45.0,134.79,134.71,7.4233]
[1718895161078,20.0,134.78,134.7,7.4235]
[1718895161248,20.0,134.78,134.62,46.104751]
[1718895161249,21.6467,134.8,134.68,18.5613]
[1718895161458,21.6467,134.8,134.72,7.4224]
[1718895161773,21.6467,134.8,134.71,7.4233]
[1718895161975,21.6467,134.8,134.69,7.4242]
[1718895162267,21.6467,134.8,134.68,7.4249]
[1718895162464,21.6467,134.8,134.69,20.0]
[1718895162666,45.0,134.79,134.69,20.0]
[1718895163375,45.0,134.79,134.65,18.5655]
[1718895163668,45.0,134.79,134.66,20.0]
[1718895163853,45.0,134.79,134.63,20.0]
[1718895163854,20.0,134.78,134.63,20.0]
[1718895164051,45.0,134.77,134.65,7.4263]
[1718895164775,20.0,134.76,134.65,7.4263]
[1718895164959,45.0,134.75,134.65,7.4263]
[1718895165153,6.3336,134.74,134.64,7.427]
[1718895165553,6.3336,134.74,134.65,7.4265]
[1718895165772,6.3336,134.74,134.64,7.4269]
[1718895166663,6.3336,134.74,134.66,7.4258]
[1718895166860,6.3336,134.74,134.63,20.0]
[1718895167180,6.3336,134.74,134.65,7.4266]
[1718895167551,6.3336,134.74,134.63,22.39]
[1718895167764,6.3336,134.74,134.66,7.4258]
[1718895167966,6.3336,134.74,134.67,7.4254]
[1718895168164,6.3336,134.74,134.64,63.5668]
[1718895168377,6.3336,134.74,134.66,7.4258]
[1718895169561,6.3336,134.74,134.66,7.426]
[1718895170263,6.3336,134.74,134.67,7.4254]
[1718895170680,6.3336,134.74,134.66,7.4258]
[1718895171585,6.3336,134.74,134.67,7.4252]
[1718895171768,6.3336,134.74,134.68,7.4249]
[1718895172456,6.3336,134.74,134.66,7.4259]
[1718895172671,6.3336,134.74,134.67,7.4254]
[1718895173074,6.3336,134.74,134.69,7.4243]
[1718895173378,6.3336,134.74,134.7,7.4234]